fUSD/lending_fUSD_20260506
["ID","MTS","AMOUNT","RATE_DAILY","PERIOD"]
[421630288,1777999842000,-500.0,0.00038356,2]
[421630300,1777999842000,-500.0,0.00038356,2]
[421630290,1777999842000,-155.90223189,0.00038356,2]
[421630324,1777999842000,-500.0,0.00038356,2]
[421630293,1777999842000,-500.0,0.00038356,2]
[421630285,1777999842000,-95790.6902745,0.00038356,2]
[421630292,1777999842000,-500.0,0.00038356,2]
[421630291,1777999842000,-500.0,0.00038356,2]
[421630296,1777999842000,-500.0,0.00038356,2]
[421630295,1777999842000,-500.0,0.00038356,2]
[421630306,1777999842000,-500.0,0.00038356,2]
[421630298,1777999842000,-485.728556,0.00038356,2]
[421630297,1777999842000,-500.0,0.00038356,2]
[421630301,1777999842000,-500.0,0.00038356,2]
[421630289,1777999842000,-500.0,0.00038356,2]
[421630338,1777999842000,-500.0,0.00038356,2]
[421630376,1777999842000,-500.0,0.00038356,2]
[421630339,1777999842000,-567.39903905,0.00038356,2]
[421630374,1777999842000,-500.0,0.00038356,2]
[421630373,1777999842000,-500.0,0.00038356,2]
[421630372,1777999842000,-500.0,0.00038356,2]
[421630371,1777999842000,-636.99885327,0.00038356,2]
[421630381,1777999842000,-1224.52,0.00038356,2]
[421630378,1777999842000,-502.37252065,0.00038356,2]
[421630382,1777999842000,-1224.52,0.00038356,2]
[421630379,1777999842000,-1224.52,0.00038356,2]
[421630377,1777999842000,-500.0,0.00038356,2]
[421630380,1777999842000,-1224.52,0.00038356,2]
[421630375,1777999842000,-500.0,0.00038356,2]
[421630369,1777999842000,-500.0,0.00038356,2]
[421630384,1777999842000,-1224.52,0.00038356,2]
[421630385,1777999842000,-500.0,0.00038356,2]
[421630383,1777999842000,-1224.52,0.00038356,2]
[421630390,1777999842000,-500.0,0.00038356,2]
[421630386,1777999842000,-500.0,0.00038356,2]
[421630387,1777999842000,-500.0,0.00038356,2]
[421630388,1777999842000,-500.0,0.00038356,2]
[421630393,1777999842000,-500.0,0.00038356,2]
[421630389,1777999842000,-179.13882902,0.00038356,2]
[421630394,1777999842000,-500.0,0.00038356,2]
[421630395,1777999842000,-275.88090159,0.00038356,2]
[421630328,1777999842000,-500.0,0.00038356,2]
[421630391,1777999842000,-500.0,0.00038356,2]
[421630363,1777999842000,-278.77825663,0.00038356,2]
[421630392,1777999842000,-500.0,0.00038356,2]
[421630364,1777999842000,-343.33478678,0.00038356,2]
[421630366,1777999842000,-500.0,0.00038356,2]
[421630340,1777999842000,-151.0,0.00038356,2]
[421630350,1777999842000,-1354.22,0.00038356,2]
[421630341,1777999842000,-500.0,0.00038356,2]
[421630342,1777999842000,-328.37985748,0.00038356,2]
[421630343,1777999842000,-500.0,0.00038356,2]
[421630345,1777999842000,-500.0,0.00038356,2]
[421630346,1777999842000,-552.4864553,0.00038356,2]
[421630348,1777999842000,-203.74834,0.00038356,7]
[421630344,1777999842000,-500.0,0.00038356,2]
[421630347,1777999842000,-151.0,0.00038356,7]
[421630354,1777999842000,-1354.22,0.00038356,2]
[421630349,1777999842000,-500.0,0.00038356,2]
[421630352,1777999842000,-1354.22,0.00038356,2]
[421630360,1777999842000,-500.0,0.00038356,2]
[421630351,1777999842000,-1354.22,0.00038356,2]
[421630365,1777999842000,-505.03150785,0.00038356,2]
[421630361,1777999842000,-500.0,0.00038356,2]
[421630358,1777999842000,-1354.22,0.00038356,2]
[421630367,1777999842000,-500.0,0.00038356,2]
[421630362,1777999842000,-500.0,0.00038356,2]
[421630357,1777999842000,-1354.22,0.00038356,2]
[421630355,1777999842000,-1354.22,0.00038356,2]
[421630356,1777999842000,-1354.22,0.00038356,2]
[421630353,1777999842000,-1354.22,0.00038356,2]
[421630359,1777999842000,-500.0,0.00038356,2]
[421630418,1777999843000,-1287.3,0.00038356,2]
[421630419,1777999843000,-1287.3,0.00038356,2]
[421630416,1777999843000,-500.0,0.00038356,2]
[421630413,1777999843000,-500.0,0.00038356,2]
[421630414,1777999843000,-500.0,0.00038356,2]
[421630417,1777999843000,-500.0,0.00038356,2]
[421630426,1777999843000,-500.0,0.00038356,2]
[421630424,1777999843000,-1287.3,0.00038356,2]
[421630423,1777999843000,-1287.3,0.00038356,2]
[421630425,1777999843000,-500.0,0.00038356,2]
[421630420,1777999843000,-1287.3,0.00038356,2]
[421630412,1777999843000,-500.0,0.00038356,2]
[421630431,1777999843000,-500.0,0.00038356,2]
[421630422,1777999843000,-1287.3,0.00038356,2]
[421630411,1777999843000,-500.0,0.00038356,2]
[421630398,1777999843000,-513.03239792,0.00038356,2]
[421630408,1777999843000,-500.0,0.00038356,2]
[421630432,1777999843000,-500.0,0.00038356,2]
[421630397,1777999843000,-500.0,0.00038356,2]
[421630396,1777999843000,-516.47398884,0.00038356,2]
[421630407,1777999843000,-500.0,0.00038356,2]
[421630405,1777999843000,-500.0,0.00038356,2]
[421630399,1777999843000,-594.46240764,0.00038356,2]
[421630415,1777999843000,-500.0,0.00038356,2]
[421630406,1777999843000,-500.0,0.00038356,2]
[421630403,1777999843000,-500.0,0.00038356,2]
[421630401,1777999843000,-203.374975,0.00038356,7]
[421630402,1777999843000,-500.0,0.00038356,2]
[421630404,1777999843000,-203.374975,0.00038356,7]
[421630409,1777999843000,-500.0,0.00038356,2]
[421630410,1777999843000,-203.374967,0.00038356,7]
[421630400,1777999843000,-203.374975,0.00038356,7]
[421630429,1777999843000,-500.0,0.00038356,2]
[421630427,1777999843000,-500.0,0.00038356,2]
[421630463,1777999843000,-4280.23543515,0.00038356,2]
[421630421,1777999843000,-1287.3,0.00038356,2]
[421630467,1777999843000,524.0,0.00022,2]
[421630464,1777999843000,-3011.22456485,0.00038356,2]
[421630465,1777999843000,-500.0,0.00038356,2]
[421630461,1777999843000,-500.0,0.00038356,2]
[421630462,1777999843000,-500.0,0.00038356,2]
[421630460,1777999843000,-500.0,0.00038356,2]
[421630458,1777999843000,-299.99156709,0.00038356,2]
[421630466,1777999843000,-2125.89638254,0.00038356,2]
[421630452,1777999843000,-500.0,0.00038356,2]
[421630451,1777999843000,-500.0,0.00038356,2]
[421630453,1777999843000,-235.18700224,0.00038356,2]
[421630450,1777999843000,-500.0,0.00038356,2]
[421630449,1777999843000,-3079.02030008,0.00038356,2]
[421630448,1777999843000,-5378.90801678,0.00038356,2]
[421630456,1777999843000,-264.81299776,0.00038356,2]
[421630445,1777999843000,-128.12195208,0.00038356,2]
[421630430,1777999843000,-500.0,0.00038356,2]
[421630447,1777999843000,-913.43212177,0.00038356,2]
[421630433,1777999843000,-16360.61,0.00038356,2]
[421630434,1777999843000,-16360.61,0.00038356,2]
[421630435,1777999843000,-16360.61,0.00038356,2]
[421630436,1777999843000,-7576.54661659,0.00038356,2]
[421630438,1777999843000,-6532.47261039,0.00038356,2]
[421630428,1777999843000,-500.0,0.00038356,2]
[421630439,1777999843000,-16360.61,0.00038356,2]
[421630440,1777999843000,-911.52777501,0.00038356,2]
[421630443,1777999843000,-754.49920379,0.00038356,2]
[421630442,1777999843000,-200.0,0.00032853,2]
[421630444,1777999843000,-581.99996384,0.00038356,2]
[421630437,1777999843000,-2251.59077302,0.00038356,2]
[421630446,1777999843000,-4613.10066665,0.00038356,2]
[421630470,1777999844000,-786.11,0.00038356,2]
[421630468,1777999844000,-143.30267076,0.00038356,2]
[421630469,1777999844000,-667.64513942,0.00038356,2]
[421630472,1777999845000,-3397.43151558,0.00038356,2]
[421630508,1777999846000,-500.0,0.00038356,2]
[421630507,1777999846000,-500.0,0.00038356,2]
[421630506,1777999846000,-500.0,0.00038356,2]
[421630497,1777999846000,-500.0,0.00038356,2]
[421630502,1777999846000,-510.4404932,0.00038356,2]
[421630504,1777999846000,-500.0,0.00038356,2]
[421630493,1777999846000,-500.0,0.00038356,2]
[421630498,1777999846000,-500.0,0.00038356,2]
[421630505,1777999846000,-500.0,0.00038356,2]
[421630503,1777999846000,-500.0,0.00038356,2]
[421630518,1777999846000,-500.0,0.00038356,2]
[421630511,1777999846000,-739.05,0.00038356,2]
[421630514,1777999846000,-739.05,0.00038356,2]
[421630509,1777999846000,-547.4183876,0.00038356,2]
[421630513,1777999846000,-739.05,0.00038356,2]
[421630512,1777999846000,-739.05,0.00038356,2]
[421630515,1777999846000,-739.05,0.00038356,2]
[421630527,1777999846000,-1051.13,0.00038356,2]
[421630517,1777999846000,-366.46373674,0.00038356,2]
[421630516,1777999846000,-739.05,0.00038356,2]
[421630496,1777999846000,-500.0,0.00038356,2]
[421630510,1777999846000,-739.05,0.00038356,2]
[421630495,1777999846000,-500.0,0.00038356,2]
[421630479,1777999846000,-1867.41717029,0.00038356,2]
[421630490,1777999846000,-500.0,0.00038356,2]
[421630473,1777999846000,-171.0742917,0.00038356,2]
[421630476,1777999846000,-500.0,0.00038356,2]
[421630477,1777999846000,-500.0,0.00038356,2]
[421630474,1777999846000,-500.0,0.00038356,2]
[421630478,1777999846000,-7291.46,0.00038356,2]
[421630475,1777999846000,-7291.46,0.00038356,2]
[421630482,1777999846000,-7291.46,0.00038356,2]
[421630481,1777999846000,-7291.46,0.00038356,2]
[421630480,1777999846000,-5424.04282971,0.00038356,2]
[421630483,1777999846000,-500.0,0.00038356,2]
[421630484,1777999846000,-500.0,0.00038356,2]
[421630485,1777999846000,-500.0,0.00038356,2]
[421630487,1777999846000,-500.0,0.00038356,2]
[421630486,1777999846000,-500.0,0.00038356,2]
[421630489,1777999846000,-500.0,0.00038356,2]
[421630488,1777999846000,-500.0,0.00038356,2]
[421630500,1777999846000,-500.0,0.00038356,2]
[421630494,1777999846000,-500.0,0.00038356,2]
[421630491,1777999846000,-500.0,0.00038356,2]
[421630492,1777999846000,-500.0,0.00038356,2]
[421630501,1777999846000,-500.0,0.00038356,2]
[421630499,1777999846000,-500.0,0.00038356,2]
[421630521,1777999846000,-500.0,0.00038356,2]
[421630559,1777999846000,-500.0,0.00038373,5]
[421630522,1777999846000,-500.0,0.00038356,2]
[421630550,1777999846000,-500.0,0.00038356,2]
[421630547,1777999846000,-500.0,0.00038356,2]
[421630552,1777999846000,-500.0,0.00038356,2]
[421630560,1777999846000,-500.0,0.00038373,5]
[421630553,1777999846000,-500.0,0.00038356,2]
[421630556,1777999846000,-500.0,0.00038356,2]
[421630562,1777999846000,-169.33728849,0.00038394,120]
[421630555,1777999846000,-500.0,0.00038356,2]
[421630561,1777999846000,-500.0,0.00038373,5]
[421630551,1777999846000,-500.0,0.00038356,2]
[421630554,1777999846000,-500.0,0.00038356,2]
[421630557,1777999846000,-425.01086262,0.00038356,2]
[421630558,1777999846000,-482.50122156,0.00038373,5]
[421630564,1777999846000,-172.55559857,0.00038397,2]
[421630565,1777999846000,-5666.4786,0.00038418,2]
[421630563,1777999846000,-169.33728848,0.00038394,120]
[421630566,1777999846000,-258.78714125,0.000385,120]
[421630570,1777999846000,-155.0,0.00038578,5]
[421630568,1777999846000,-432.0,0.00038505,5]
[421630567,1777999846000,-500.0,0.00038505,5]
[421630520,1777999846000,-500.0,0.00038356,2]
[421630543,1777999846000,-500.0,0.00038356,2]
[421630542,1777999846000,-500.0,0.00038356,2]
[421630569,1777999846000,-5666.4786,0.00038554,2]
[421630545,1777999846000,-500.0,0.00038356,2]
[421630549,1777999846000,-265.17225113,0.00038356,2]
[421630519,1777999846000,-406.79756789,0.00038356,2]
[421630526,1777999846000,-500.0,0.00038356,2]
[421630524,1777999846000,-500.0,0.00038356,2]
[421630523,1777999846000,-500.0,0.00038356,2]
[421630528,1777999846000,-1051.13,0.00038356,2]
[421630530,1777999846000,-1051.13,0.00038356,2]
[421630533,1777999846000,-167.0,0.00038356,5]
[421630534,1777999846000,-2683.23,0.00038356,2]
[421630529,1777999846000,-1051.13,0.00038356,2]
[421630532,1777999846000,-1051.13,0.00038356,2]
[421630525,1777999846000,-500.0,0.00038356,2]
[421630535,1777999846000,-2683.23,0.00038356,2]
[421630531,1777999846000,-1051.13,0.00038356,2]
[421630544,1777999846000,-500.0,0.00038356,2]
[421630546,1777999846000,-500.0,0.00038356,2]
[421630541,1777999846000,-500.0,0.00038356,2]
[421630548,1777999846000,-362.45714974,0.00038356,2]
[421630540,1777999846000,-2683.23,0.00038356,2]
[421630538,1777999846000,-2683.23,0.00038356,2]
[421630536,1777999846000,-2683.23,0.00038356,2]
[421630537,1777999846000,-2683.23,0.00038356,2]
[421630539,1777999846000,-2683.23,0.00038356,2]
[421630612,1777999847000,-200.0,0.00039243,2]
[421630602,1777999847000,-150.0,0.00039159,7]
[421630603,1777999847000,-700.0,0.00039177,2]
[421630600,1777999847000,-1354.22,0.00039021,2]
[421630605,1777999847000,-167.14994338,0.0003923,2]
[421630615,1777999847000,-311.0,0.00039243,2]
[421630606,1777999847000,-288.551,0.00039238,2]
[421630611,1777999847000,-200.0,0.00039243,2]
[421630599,1777999847000,-500.0,0.0003902,2]
[421630609,1777999847000,-200.0,0.00039243,2]
[421630607,1777999847000,-5666.4786,0.00039238,2]
[421630604,1777999847000,-172.55559857,0.00039208,2]
[421630608,1777999847000,-200.0,0.00039243,2]
[421630616,1777999847000,-450.0,0.00039278,2]
[421630614,1777999847000,-200.0,0.00039243,2]
[421630610,1777999847000,-200.0,0.00039243,2]
[421630617,1777999847000,-450.0,0.00039278,2]
[421630618,1777999847000,-450.0,0.00039278,2]
[421630621,1777999847000,-450.0,0.00039278,2]
[421630597,1777999847000,-419.064,0.00039005,2]
[421630613,1777999847000,-200.0,0.00039243,2]
[421630598,1777999847000,-928.0,0.00039005,2]
[421630591,1777999847000,-637.515,0.00039005,2]
[421630593,1777999847000,-150.258,0.00039005,2]
[421630619,1777999847000,-450.0,0.00039278,2]
[421630574,1777999847000,-165.36,0.00038628,2]
[421630575,1777999847000,-5666.4786,0.00038691,2]
[421630571,1777999847000,-150.0,0.00038591,7]
[421630584,1777999847000,-500.0,0.00038986,2]
[421630583,1777999847000,-5666.4786,0.00038964,2]
[421630586,1777999847000,-595.89,0.00039,5]
[421630587,1777999847000,-1364.169,0.00039005,2]
[421630585,1777999847000,-500.0,0.00038986,2]
[421630594,1777999847000,-1267.0,0.00039005,2]
[421630589,1777999847000,-3535.0,0.00039005,2]
[421630579,1777999847000,-5375.27,0.000388,7]
[421630582,1777999847000,-1000.0,0.00038921,5]
[421630580,1777999847000,-5666.4786,0.00038828,2]
[421630578,1777999847000,-570.64976707,0.00038799,2]
[421630581,1777999847000,-201.93286099,0.00038886,2]
[421630592,1777999847000,-925.0,0.00039005,2]
[421630601,1777999847000,-5666.4786,0.00039101,2]
[421630595,1777999847000,-200.0,0.00039005,2]
[421630596,1777999847000,-3624.0,0.00039005,2]
[421630577,1777999847000,-150.0,0.00038733,7]
[421630622,1777999847000,-450.0,0.00039278,2]
[421630668,1777999847000,-1000.0,0.00039576,2]
[421630623,1777999847000,-450.0,0.00039278,2]
[421630654,1777999847000,-103043.65271435,0.000395,2]
[421630652,1777999847000,-1930.71383828,0.00039499,2]
[421630647,1777999847000,-554.8,0.00039498,2]
[421630649,1777999847000,-500.0,0.00039498,2]
[421630650,1777999847000,-739.05,0.00039498,2]
[421630653,1777999847000,-2299.99999999,0.000395,2]
[421630656,1777999847000,-473.0,0.00039507,2]
[421630664,1777999847000,-1000.0,0.00039576,2]
[421630662,1777999847000,-716.75,0.00039569,120]
[421630651,1777999847000,-500.0,0.00039498,2]
[421630655,1777999847000,-1677.00362166,0.000395,2]
[421630659,1777999847000,-473.0,0.00039521,2]
[421630658,1777999847000,-473.0,0.0003952,2]
[421630657,1777999847000,-5666.4786,0.00039511,2]
[421630660,1777999847000,-473.0,0.00039546,2]
[421630661,1777999847000,-1580.0,0.00039567,11]
[421630665,1777999847000,-1000.0,0.00039576,2]
[421630667,1777999847000,-1000.0,0.00039576,2]
[421630666,1777999847000,-1000.0,0.00039576,2]
[421630669,1777999847000,-1000.0,0.00039576,2]
[421630663,1777999847000,-1000.0,0.00039576,2]
[421630648,1777999847000,-1287.3,0.00039498,2]
[421630620,1777999847000,-450.0,0.00039278,2]
[421630646,1777999847000,-520.25376135,0.00039472,2]
[421630645,1777999847000,-1500.0,0.00039468,5]
[421630625,1777999847000,-240.0,0.00039278,2]
[421630624,1777999847000,-450.0,0.00039278,2]
[421630626,1777999847000,-537.0,0.00039286,30]
[421630628,1777999847000,-982.0,0.00039286,30]
[421630632,1777999847000,-150.0,0.00039341,2]
[421630629,1777999847000,-400.0,0.00039289,2]
[421630634,1777999847000,-183.35614362,0.0003935,120]
[421630630,1777999847000,-400.0,0.00039289,2]
[421630633,1777999847000,-150.0,0.0003935,120]
[421630627,1777999847000,-382.0,0.00039286,30]
[421630635,1777999847000,-150.0,0.0003935,120]
[421630636,1777999847000,-7291.46,0.00039374,2]
[421630638,1777999847000,-2683.23,0.00039374,2]
[421630640,1777999847000,-209.40437684,0.00039434,2]
[421630643,1777999847000,-9752.4416872,0.00039441,2]
[421630637,1777999847000,-500.0,0.00039374,2]
[421630641,1777999847000,-473.0,0.0003944,2]
[421630644,1777999847000,-500.0,0.00039466,2]
[421630639,1777999847000,-5666.4786,0.00039375,2]
[421630642,1777999847000,-473.0,0.0003944,2]
[421630631,1777999847000,-705.17344254,0.00039289,2]
[421630705,1777999848000,-300.0,0.00039688,2]
[421630704,1777999848000,-300.0,0.00039688,2]
[421630703,1777999848000,-300.0,0.00039688,2]
[421630702,1777999848000,-300.0,0.00039688,2]
[421630701,1777999848000,-300.0,0.00039688,2]
[421630700,1777999848000,-300.0,0.00039688,2]
[421630710,1777999848000,-150.0,0.00039703,2]
[421630711,1777999848000,-150.0,0.00039703,2]
[421630708,1777999848000,-150.0,0.00039703,2]
[421630706,1777999848000,-176.0,0.00039688,2]
[421630709,1777999848000,-150.0,0.00039703,2]
[421630712,1777999848000,-150.0,0.00039703,2]
[421630734,1777999848000,-500.0,0.00039726,15]
[421630713,1777999848000,-150.0,0.00039703,2]
[421630715,1777999848000,-1224.52,0.00039708,2]
[421630714,1777999848000,-217.0,0.00039703,2]
[421630718,1777999848000,-500.0,0.00039708,2]
[421630717,1777999848000,-1051.13,0.00039708,2]
[421630721,1777999848000,-150.0,0.00039726,7]
[421630722,1777999848000,-150.0,0.00039726,7]
[421630719,1777999848000,-500.0,0.00039713,2]
[421630720,1777999848000,-1354.22,0.00039713,2]
[421630724,1777999848000,-500.0,0.00039726,15]
[421630707,1777999848000,-2000.0,0.000397,116]
[421630723,1777999848000,-500.0,0.00039726,15]
[421630716,1777999848000,-16360.61,0.00039708,2]
[421630699,1777999848000,-300.0,0.00039688,2]
[421630687,1777999848000,-750.0,0.00039642,2]
[421630697,1777999848000,-300.0,0.00039688,2]
[421630674,1777999848000,-160.0,0.000396,72]
[421630671,1777999848000,-1000.0,0.00039576,2]
[421630672,1777999848000,-623.0,0.00039576,2]
[421630670,1777999848000,-1000.0,0.00039576,2]
[421630675,1777999848000,-2000.0,0.000396,115]
[421630677,1777999848000,-158.79211771,0.00039611,2]
[421630676,1777999848000,-503.23874333,0.0003961,2]
[421630680,1777999848000,-750.0,0.00039642,2]
[421630679,1777999848000,-473.0,0.00039612,2]
[421630684,1777999848000,-750.0,0.00039642,2]
[421630678,1777999848000,-473.0,0.00039612,2]
[421630681,1777999848000,-750.0,0.00039642,2]
[421630698,1777999848000,-300.0,0.00039688,2]
[421630685,1777999848000,-750.0,0.00039642,2]
[421630682,1777999848000,-750.0,0.00039642,2]
[421630683,1777999848000,-750.0,0.00039642,2]
[421630725,1777999848000,-500.0,0.00039726,15]
[421630688,1777999848000,-750.0,0.00039642,2]
[421630691,1777999848000,-5666.4786,0.00039648,2]
[421630692,1777999848000,-473.0,0.00039649,2]
[421630689,1777999848000,-263.0,0.00039642,2]
[421630690,1777999848000,-622.32,0.00039648,2]
[421630693,1777999848000,-473.0,0.00039652,2]
[421630694,1777999848000,-473.0,0.00039668,2]
[421630695,1777999848000,-473.0,0.00039675,2]
[421630696,1777999848000,-473.0,0.00039676,2]
[421630686,1777999848000,-750.0,0.00039642,2]
[421630726,1777999848000,-500.0,0.00039726,15]
[421630673,1777999848000,-520.25376135,0.00039591,2]
[421630730,1777999848000,-500.0,0.00039726,15]
[421630763,1777999848000,-150.0,0.000399,2]
[421630761,1777999848000,-158.02252431,0.000399,2]
[421630768,1777999848000,-307.0,0.000399,2]
[421630759,1777999848000,-1036.52476989,0.0003982,15]
[421630760,1777999848000,-576.28617382,0.00039849,2]
[421630767,1777999848000,-2000.0,0.000399,119]
[421630762,1777999848000,-150.7185619,0.000399,2]
[421630764,1777999848000,-162.0,0.000399,120]
[421630765,1777999848000,-446.10467282,0.000399,2]
[421630769,1777999848000,-5666.4786,0.00039921,2]
[421630780,1777999848000,-500.0,0.00039999,2]
[421630770,1777999848000,-1354.22,0.00039962,2]
[421630766,1777999848000,-3257.47095246,0.000399,2]
[421630779,1777999848000,-500.0,0.00039998,2]
[421630776,1777999848000,-16360.61,0.00039998,2]
[421630772,1777999848000,-1132.92956671,0.0003999,7]
[421630771,1777999848000,-217.15233878,0.00039982,2]
[421630774,1777999848000,-1224.52,0.00039998,2]
[421630777,1777999848000,-612.15,0.00039998,2]
[421630778,1777999848000,-1051.13,0.00039998,2]
[421630785,1777999848000,-1354.22,0.00039999,2]
[421630781,1777999848000,-500.0,0.00039999,2]
[421630783,1777999848000,-526.84868168,0.00039999,2]
[421630784,1777999848000,-1354.22,0.00039999,2]
[421630782,1777999848000,-500.0,0.00039999,2]
[421630727,1777999848000,-500.0,0.00039726,15]
[421630773,1777999848000,-935.54160261,0.00039993,2]
[421630758,1777999848000,-1000.0,0.0003982,15]
[421630775,1777999848000,-500.0,0.00039998,2]
[421630754,1777999848000,-1000.0,0.0003982,15]
[421630731,1777999848000,-500.0,0.00039726,15]
[421630756,1777999848000,-1000.0,0.0003982,15]
[421630733,1777999848000,-413.24334186,0.00039726,15]
[421630729,1777999848000,-500.0,0.00039726,15]
[421630728,1777999848000,-500.0,0.00039726,15]
[421630732,1777999848000,-500.0,0.00039726,15]
[421630735,1777999848000,-500.0,0.00039728,2]
[421630737,1777999848000,-500.0,0.00039728,2]
[421630741,1777999848000,-500.0,0.00039728,2]
[421630738,1777999848000,-500.0,0.00039728,2]
[421630742,1777999848000,-7291.46,0.00039729,2]
[421630736,1777999848000,-1287.3,0.00039728,2]
[421630739,1777999848000,-500.0,0.00039728,2]
[421630740,1777999848000,-739.05,0.00039728,2]
[421630749,1777999848000,-1051.13,0.00039799,2]
[421630746,1777999848000,-5666.4786,0.00039785,2]
[421630745,1777999848000,-217285.0591,0.00039729,30]
[421630744,1777999848000,-2683.23,0.00039729,2]
[421630757,1777999848000,-1000.0,0.0003982,15]
[421630747,1777999848000,-1224.52,0.00039799,2]
[421630752,1777999848000,-1000.0,0.0003982,15]
[421630748,1777999848000,-16360.61,0.00039799,2]
[421630751,1777999848000,-2000.0,0.000398,118]
[421630750,1777999848000,-500.0,0.00039799,2]
[421630743,1777999848000,-645.49,0.00039729,2]
[421630753,1777999848000,-1000.0,0.0003982,15]
[421630755,1777999848000,-1000.0,0.0003982,15]
[421630805,1777999849000,-1287.3,0.00039999,2]
[421630815,1777999849000,-16360.61,0.00039999,2]
[421630813,1777999849000,-16360.61,0.00039999,2]
[421630801,1777999849000,-1287.3,0.00039999,2]
[421630807,1777999849000,-500.0,0.00039999,2]
[421630806,1777999849000,-500.0,0.00039999,2]
[421630814,1777999849000,-16360.61,0.00039999,2]
[421630812,1777999849000,-500.0,0.00039999,2]
[421630810,1777999849000,-500.0,0.00039999,2]
[421630809,1777999849000,-500.0,0.00039999,2]
[421630799,1777999849000,-1287.3,0.00039999,2]
[421630804,1777999849000,-1287.3,0.00039999,2]
[421630796,1777999849000,-1224.52,0.00039999,2]
[421630790,1777999849000,-1354.22,0.00039999,2]
[421630800,1777999849000,-1287.3,0.00039999,2]
[421630803,1777999849000,-1287.3,0.00039999,2]
[421630802,1777999849000,-1287.3,0.00039999,2]
[421630795,1777999849000,-1224.52,0.00039999,2]
[421630797,1777999849000,-500.0,0.00039999,2]
[421630794,1777999849000,-1224.52,0.00039999,2]
[421630793,1777999849000,-1224.52,0.00039999,2]
[421630788,1777999849000,-1354.22,0.00039999,2]
[421630786,1777999849000,-1354.22,0.00039999,2]
[421630787,1777999849000,-1354.22,0.00039999,2]
[421630791,1777999849000,-1224.52,0.00039999,2]
[421630792,1777999849000,-1224.52,0.00039999,2]
[421630789,1777999849000,-1354.22,0.00039999,2]
[421630811,1777999849000,-500.0,0.00039999,2]
[421630798,1777999849000,-255.75,0.00039999,2]
[421630817,1777999849000,-16360.61,0.00039999,2]
[421630808,1777999849000,-500.0,0.00039999,2]
[421630816,1777999849000,-16360.61,0.00039999,2]
[421630847,1777999849000,-71.93136829,0.00039999,2]
[421630848,1777999849000,-739.40721041,0.00039999,2]
[421630846,1777999849000,-22.92963242,0.00039999,2]
[421630845,1777999849000,-607.21864613,0.00039999,2]
[421630843,1777999849000,-1051.13,0.00039999,2]
[421630844,1777999849000,-349.05035316,0.00039999,2]
[421630835,1777999849000,-739.05,0.00039999,2]
[421630834,1777999849000,-739.05,0.00039999,2]
[421630837,1777999849000,-739.05,0.00039999,2]
[421630829,1777999849000,-7291.46,0.00039999,2]
[421630836,1777999849000,-739.05,0.00039999,2]
[421630831,1777999849000,-7291.46,0.00039999,2]
[421630832,1777999849000,-7291.46,0.00039999,2]
[421630841,1777999849000,-1051.13,0.00039999,2]
[421630842,1777999849000,-1051.13,0.00039999,2]
[421630840,1777999849000,-1051.13,0.00039999,2]
[421630833,1777999849000,-739.05,0.00039999,2]